bitfinex/quotes_ETHUSD_20250517
["timestamp","ask_amount","ask_price","bid_price","bid_amount"]
[1747505772107,17.466,2471.3,2470.1,0.04047472]
[1747505772324,10.69,2471.2,2470.1,0.55]
[1747505772562,10.69,2471.2,2469.9,10.744]
[1747505772563,12.04678078,2471.1,2470.2,0.7556]
[1747505772707,4.04801632,2470.4,2469.9,4.04866399]
[1747505773036,4.04817733,2470.3,2469.8,0.64805088]
[1747505773240,14.7302552,2470.2,2469.8,0.64805088]
[1747505773415,10.678,2470.1,2469.8,0.64805088]
[1747505773613,4.04800531,2470.4,2469.9,4.04863157]
[1747505773614,4.04803777,2470.4,2469.9,4.04863157]
[1747505773815,4.04692239,2471.1,2470.0,0.04048701]
[1747505774015,4.04677908,2471.2,2470.0,0.8166]
[1747505774214,4.04778134,2470.5,2470.0,0.8166]
[1747505774434,4.04753203,2470.7,2470.1,0.55]
[1747505774748,10.674,2470.4,2469.9,0.55]
[1747505774952,10.667,2470.3,2470.1,4.59828399]
[1747505775254,10.665,2470.8,2470.7,4.59741342]
[1747505775457,10.665,2470.8,2469.9,0.8166]
[1747505775614,10.665,2470.8,2470.2,4.0482552]
[1747505775923,10.665,2470.8,2470.3,0.55]
[1747505776128,0.8188,2471.4,2470.3,0.55]
[1747505776457,21.398,2471.2,2470.5,4.59775082]
[1747505776663,21.398,2471.2,2470.7,4.04743222]
[1747505776814,21.398,2471.2,2470.6,0.55]
[1747505776815,21.398,2471.2,2470.6,4.04758123]
[1747505777145,8.0,2471.1,2470.7,0.55]
[1747505777347,8.0,2471.1,2470.4,4.59784956]
[1747505777524,21.51247736,2471.3,2470.9,0.55]
[1747505777712,4.04688141,2471.1,2470.9,0.55]
[1747505778053,10.624,2471.2,2470.7,0.55]
[1747505778436,14.6707126,2471.2,2470.7,4.59735216]
[1747505779133,14.67073657,2471.2,2470.7,4.04743007]
[1747505779454,14.67073657,2471.2,2470.6,0.55]
[1747505779662,14.67073657,2471.2,2470.6,4.59752143]
[1747505779856,4.04684112,2471.1,2470.5,4.59770978]
[1747505780358,4.04711413,2470.9,2470.4,0.55]
[1747505780758,10.624,2471.2,2470.1,10.746]
[1747505781059,4.04703861,2471.0,2470.5,4.04769085]
[1747505781251,4.04703861,2471.0,2470.6,0.55]
[1747505781635,10.524,2470.9,2470.6,0.55]
[1747505781859,10.521,2470.8,2470.6,0.55]
[1747505782058,10.521,2470.8,2470.1,10.746]
[1747505782059,10.521,2470.8,2470.4,0.55]
[1747505782270,10.521,2470.8,2470.1,10.746]
[1747505782456,4.04758366,2470.7,2470.3,0.55]
[1747505782762,14.5684185,2470.8,2470.2,4.59825267]
[1747505783060,10.495,2470.7,2470.6,0.55]
[1747505783277,8.0,2471.2,2470.3,0.55]
[1747505783423,8.0,2471.2,2470.2,4.04822305]
[1747505783424,14.53286802,2471.1,2470.7,0.55]
[1747505783628,14.53286802,2471.1,2470.2,4.59823351]
[1747505783629,4.04717936,2470.9,2470.5,0.55]
[1747505783857,4.0470425,2471.0,2470.5,4.59770227]
[1747505784269,4.0470425,2471.0,2470.2,0.55]
[1747505784270,8.0,2471.0,2470.2,0.55]
[1747505784555,4.04678078,2471.1,2470.4,4.59782119]
[1747505784756,4.04735944,2470.8,2470.4,0.55]
[1747505785376,10.442,2470.7,2470.6,0.55]
[1747505785590,10.442,2470.7,2470.3,4.59795801]
[1747505785870,10.427,2470.7,2470.4,4.04784029]
[1747505786170,10.427,2470.7,2470.5,0.55]
[1747505786375,10.427,2470.7,2470.2,4.04816376]
[1747505786376,10.427,2470.7,2470.3,4.59800075]
[1747505786873,10.427,2470.7,2470.2,4.59825024]
[1747505787187,10.427,2470.7,2470.4,0.55]
[1747505787670,4.04735858,2470.8,2470.3,4.59809132]
[1747505788170,10.375,2470.7,2470.3,4.59798517]
[1747505788779,4.04776361,2470.5,2470.4,0.38590831]
[1747505789334,0.7551,2470.6,2470.5,0.55]
[1747505789565,14.38863554,2470.6,2470.5,0.55]
[1747505790074,4.04743862,2470.7,2470.5,0.55]
[1747505790375,10.33,2470.6,2470.5,0.55]
[1747505790573,4.04663122,2471.2,2470.7,0.55]
[1747505790786,14.36512262,2470.9,2470.6,0.55]
[1747505791445,10.318,2470.9,2470.6,0.55]
[1747505791762,14.3651749,2470.9,2470.5,0.55]
[1747505791982,14.3651749,2470.9,2470.3,4.0480715]
[1747505791983,4.04750405,2470.7,2470.3,0.55]
[1747505792197,4.04779759,2470.5,2470.3,0.55]
[1747505792763,10.27,2470.6,2470.3,0.55]
[1747505793294,10.259,2470.6,2470.5,0.55]
[1747505793597,10.259,2470.6,2470.5,0.93680779]
[1747505794082,14.29259977,2470.6,2470.5,0.93680779]
[1747505794275,4.04689169,2471.1,2470.6,4.04756744]
[1747505794481,14.28094765,2471.0,2470.5,0.93680779]
[1747505794692,14.28103283,2471.0,2470.5,4.98448613]
[1747505795012,4.04637914,2471.4,2471.0,0.55]
[1747505795178,10.222,2471.2,2471.0,0.55]
[1747505795380,14.26870175,2471.2,2470.8,0.55]
[1747505795605,4.0467893,2471.1,2470.8,0.55]
[1747505795781,4.0467893,2471.1,2470.7,0.55]
[1747505796196,10.222,2471.2,2470.7,0.55]
[1747505796394,4.04717743,2470.9,2470.7,0.55]
[1747505796705,4.04722804,2470.9,2470.7,0.55]
[1747505796905,4.04703626,2471.0,2470.8,0.38680779]
[1747505797512,10.166,2470.9,2470.8,4.9840136]
[1747505797710,10.166,2470.9,2470.8,0.93680779]
[1747505798015,4.04628369,2471.5,2470.9,0.55]
[1747505798318,0.29734452,2471.7,2471.6,0.55]
[1747505798609,10.45334452,2471.7,2471.6,0.55]
[1747505798815,10.45334452,2471.7,2471.5,0.55]
[1747505799113,0.29734452,2471.7,2471.6,4.59596212]
[1747505799416,4.04537041,2472.0,2471.6,0.55]
[1747505799828,14.185245,2472.1,2471.8,0.55]
[1747505800030,10.14,2472.1,2471.8,4.59557335]
[1747505800196,10.119,2472.1,2471.9,0.55]
[1747505800383,10.119,2472.1,2471.9,4.595377]
[1747505800782,10.106,2472.5,2472.2,0.55]
[1747505800980,14.15058664,2472.5,2472.2,0.55]
[1747505801183,0.7908,2472.9,2472.1,0.55]
[1747505801382,4.04334465,2473.2,2472.3,4.59473933]
[1747505801614,0.7908,2473.3,2472.3,0.38680779]
[1747505801615,4.0445933,2472.5,2472.3,0.38680779]
[1747505801818,4.04465296,2472.4,2472.3,0.38680779]
[1747505802317,8.0,2473.0,2472.3,0.38680779]
[1747505802318,0.7908,2473.3,2472.3,0.38680779]
[1747505802524,10.155,2472.9,2472.3,0.93680779]
[1747505802826,4.0441025,2472.8,2472.5,0.55]
[1747505802992,10.063,2472.7,2472.5,0.55]
[1747505803698,4.04410109,2472.8,2472.5,0.55]
[1747505803894,10.051,2472.7,2472.6,0.38680779]
[1747505806960,4.04347377,2473.2,2472.7,0.55]
[1747505807167,18.11494192,2473.7,2473.1,0.55]
[1747505807168,0.7809,2473.7,2473.1,0.55]
[1747505807299,9.975,2473.6,2473.1,0.55]
[1747505807636,9.967,2473.6,2473.3,4.04308914]
[1747505807801,14.00970399,2473.6,2473.2,0.55]
[1747505808002,4.82279532,2474.1,2473.4,4.04290097]
[1747505808198,14.00113286,2474.0,2473.4,0.55]
[1747505808403,13.99630081,2473.9,2473.4,0.55]
[1747505808599,13.99237035,2473.8,2473.3,0.55]
[1747505809051,4.04239194,2473.8,2473.3,4.59310649]
[1747505809249,4.04239194,2473.8,2472.8,10.153]
[1747505809250,9.937,2473.8,2473.5,0.55]
[1747505809625,4.04239616,2473.8,2473.4,0.55]
[1747505809843,4.04270242,2473.6,2473.4,0.55]
[1747505810040,4.04295886,2473.5,2473.2,0.55]
[1747505810215,4.04236397,2473.8,2472.9,0.55]
[1747505810417,4.04311081,2473.4,2472.9,10.701]
[1747505810621,4.04311081,2473.4,2473.1,0.55]
[1747505810821,4.04256269,2473.7,2473.1,0.55]
[1747505811132,4.04303617,2473.4,2473.1,0.55]
[1747505811978,4.04350814,2473.1,2473.0,0.38287712]
[1747505812584,13.92150814,2473.1,2473.0,0.93287712]
[1747505812765,13.92150814,2473.1,2473.0,0.55]
[1747505813184,4.04350814,2473.1,2473.0,0.55]
[1747505813350,13.90264936,2473.1,2472.3,0.8024]
[1747505813550,4.04377553,2473.0,2472.6,0.55]
[1747505815596,4.04377553,2473.0,2472.4,0.55]
[1747505815756,4.04383517,2472.9,2472.4,0.55]
[1747505816276,4.04383517,2472.9,2472.4,4.59464776]
[1747505816482,13.90265673,2473.1,2472.7,0.55]
[1747505816850,4.04374734,2473.0,2472.5,4.59440103]
[1747505817357,4.04402326,2472.8,2472.5,0.55]
[1747505817666,4.04402326,2472.8,2472.4,4.04460463]
[1747505817667,4.04402326,2472.8,2472.4,0.55]
[1747505817865,4.04226036,2472.8,2472.4,0.55]
[1747505818279,4.04226036,2472.8,2472.4,4.59464679]
[1747505818468,4.04226036,2472.8,2472.4,0.55]
[1747505818666,4.04226036,2472.8,2472.4,4.59464294]
[1747505818883,13.90257167,2473.1,2472.6,0.55]
[1747505819082,9.859,2473.1,2472.7,0.55]
[1747505819265,4.04369235,2473.0,2472.7,0.55]
[1747505819656,9.859,2473.1,2472.4,0.55]
[1747505819881,4.04443913,2472.6,2472.4,0.55]
[1747505820052,4.04422438,2472.7,2472.3,0.55]
[1747505820252,26.27061239,2473.7,2471.9,10.5906]
[1747505820253,9.723,2472.6,2471.9,10.5906]
[1747505820489,9.723,2472.6,2471.1,4.04673482]
[1747505820490,4.04448938,2472.5,2471.5,4.69004082]
[1747505820653,0.7952,2472.8,2471.5,1.19106688]
[1747505820857,4.04455312,2472.5,2472.0,4.04523721]
[1747505821057,0.7952,2473.2,2472.1,0.04044931]
[1747505821376,0.7952,2473.2,2471.9,9.81]
[1747505821377,4.04440819,2472.6,2472.2,0.55]
[1747505821697,8.7952,2473.2,2472.0,0.7806]
[1747505821870,4.83863375,2473.2,2472.8,0.55]
[1747505822081,9.705,2473.1,2472.8,0.55]
[1747505822378,0.7952,2473.6,2472.9,0.55]
[1747505822568,9.697,2473.6,2472.9,4.63420048]
[1747505822773,13.73486073,2473.5,2473.1,0.55]
[1747505822994,4.04274455,2473.6,2473.1,0.55]
[1747505823206,0.7952,2474.1,2473.4,0.55]
[1747505823393,9.684,2473.7,2473.4,0.55]
[1747505823598,0.7952,2474.1,2473.5,0.55]
[1747505823802,4.63665502,2475.0,2473.5,0.55]
[1747505823803,13.7223771,2473.8,2473.5,0.55]
[1747505824105,13.7223771,2473.8,2473.4,0.55]
[1747505824106,4.04236606,2473.8,2473.4,0.55]
[1747505824311,4.04238043,2473.8,2473.5,0.55]
[1747505824609,4.04238043,2473.8,2473.1,0.63682108]
[1747505824610,9.667,2473.9,2473.1,0.63682108]
[1747505824793,4.04214184,2474.0,2473.2,0.59042808]
[1747505825106,4.04214184,2474.0,2473.6,0.55]
[1747505825409,4.04238281,2473.8,2473.4,0.55]
[1747505825607,4.04236397,2473.8,2473.3,0.55]
[1747505825838,4.04172978,2474.2,2473.3,0.55]
[1747505825839,4.04153468,2474.4,2473.3,1.07302655]
[1747505825979,4.04199866,2474.1,2473.6,0.55]
[1747505826311,13.68213664,2474.0,2473.6,0.55]
[1747505826516,4.04131672,2474.5,2474.1,0.55]
[1747505826809,9.638,2474.6,2473.8,0.55]
[1747505827010,4.04232896,2473.9,2473.5,0.55]
[1747505827211,13.67217038,2474.0,2473.5,0.55]
[1747505827392,4.04221898,2473.9,2473.5,0.55]
[1747505827715,4.04221898,2473.9,2473.7,0.55]
[1747505829420,4.04221898,2473.9,2473.5,0.55]
[1747505829844,17.463,2475.4,2473.5,0.55]
[1747505830119,4.04178317,2474.2,2473.7,4.59245156]
[1747505830618,4.04178317,2474.2,2473.8,0.38549767]
[1747505831518,4.04188857,2474.1,2473.9,0.55]
[1747505831717,4.04203718,2474.0,2473.9,0.55]
[1747505832023,13.58603718,2474.0,2473.9,0.93549767]
[1747505832396,13.58603718,2474.0,2473.9,0.38549767]
[1747505832599,21.58603718,2474.0,2473.9,0.38549767]
[1747505832793,12.04203718,2474.0,2473.9,0.38549767]
[1747505833031,31.38103718,2474.0,2473.9,0.38549767]
[1747505833211,13.57303718,2474.0,2473.9,0.38549767]
[1747505833598,4.04236803,2473.8,2473.6,0.55]
[1747505833912,9.521,2473.8,2473.6,0.55]
[1747505834109,4.04194579,2474.1,2473.6,4.5926628]
[1747505834321,13.55594579,2474.1,2473.6,4.5926628]
[1747505834536,9.51,2474.1,2473.8,0.55]
[1747505835122,13.55194514,2474.1,2473.8,0.55]
[1747505835418,4.04209096,2474.0,2473.6,0.55]
[1747505837438,12.04140137,2474.4,2473.6,0.55]
[1747505837439,12.04138387,2474.4,2473.6,0.55]
[1747505837643,12.04138387,2474.4,2473.7,0.38572857]
[1747505837644,4.04198397,2474.1,2473.7,0.38572857]
[1747505837827,4.04214099,2474.0,2473.8,0.55]
[1747505838703,4.04220057,2473.9,2473.5,0.4791595]
[1747505838940,4.04269081,2473.6,2473.5,0.4791595]
[1747505840904,4.04256081,2473.7,2472.8,4.59389493]
[1747505840905,4.04324769,2473.3,2472.8,4.59389493]
[1747505841138,9.42,2473.2,2472.8,4.59389493]
[1747505841357,9.42,2473.2,2472.7,0.7647]
[1747505841541,4.04393676,2472.9,2472.6,9.9891595]
[1747505841709,4.04380315,2473.0,2472.6,9.9891595]
[1747505841909,4.04380315,2473.0,2472.7,0.93579269]
[1747505842141,8.0,2473.9,2472.7,0.93579269]
[1747505842314,4.04332544,2473.3,2472.9,0.55]
[1747505842519,4.04336273,2473.2,2472.8,0.55]
[1747505842704,4.04313145,2473.4,2472.8,0.55]
[1747505842705,8.0,2473.4,2472.8,0.55]
[1747505842915,4.04364419,2473.1,2472.9,0.38579269]
[1747505843110,4.04367165,2473.0,2472.9,0.38579269]
[1747505843808,4.04416225,2472.7,2472.6,0.55]
[1747505844209,4.04432581,2472.6,2472.5,0.4791595]
[1747505844642,0.8224,2473.0,2472.6,0.55]
[1747505844806,9.365,2473.1,2472.6,0.55]
[1747505845006,13.40851625,2473.1,2472.5,0.55]
[1747505845224,4.04384955,2472.9,2472.5,0.55]
[1747505845647,4.04384955,2472.9,2472.6,0.38585066]
[1747505846510,13.40862698,2473.1,2472.6,0.38585066]
[1747505846847,4.0440926,2472.8,2472.4,0.55]
[1747505847046,4.04424792,2472.7,2472.4,0.55]
[1747505847447,4.04400444,2472.8,2472.5,0.38573389]
[1747505847646,9.365,2473.1,2472.5,0.38573389]
[1747505847950,9.321,2473.0,2472.6,4.59430994]
[1747505848447,4.04350529,2473.2,2472.7,4.59407872]
[1747505848448,13.35441342,2473.2,2472.7,4.59407872]
[1747505848651,4.04355777,2473.1,2472.7,0.93573389]
[1747505848818,13.3544314,2473.2,2472.7,4.97988665]
[1747505849018,13.3544314,2473.2,2472.7,6.01336818]
[1747505849217,4.0435768,2473.1,2472.8,0.38573389]
[1747505849418,13.35441564,2473.2,2472.8,0.38573389]
[1747505849818,4.04354342,2473.1,2472.8,0.38573389]
[1747505850024,4.04383517,2472.9,2472.8,0.38573389]
[1747505850216,4.04367768,2473.0,2472.8,0.38573389]
[1747505850750,4.04323032,2473.3,2472.8,0.38573389]
[1747505850928,9.275,2473.2,2472.9,0.55]
[1747505851333,0.8224,2473.8,2472.9,0.55]
[1747505851530,4.042721,2473.6,2473.3,0.55]
[1747505851731,4.0430177,2473.4,2473.3,0.55]
[1747505851934,4.04364159,2473.1,2472.7,4.59413361]
[1747505852144,4.04391538,2472.9,2472.7,1.99403939]
[1747505852466,4.04383704,2472.9,2472.6,0.7647]
[1747505852767,4.04383704,2472.9,2472.7,0.55]
[1747505854470,4.0439987,2472.8,2472.5,9.9911595]
[1747505854674,4.04408666,2472.8,2472.6,0.55]
[1747505854860,4.04416225,2472.7,2472.6,0.55]
[1747505855056,4.04406926,2472.8,2472.7,0.38587562]
[1747505856239,4.04406926,2472.8,2472.6,0.55]
[1747505856992,4.04416225,2472.7,2472.6,0.55]
[1747505857523,4.04416225,2472.7,2472.6,0.93582843]
[1747505857901,9.194,2472.8,2472.6,4.98013975]
[1747505858207,4.83867589,2473.8,2473.0,0.55]
[1747505858371,4.04325953,2473.3,2472.7,4.59416225]
[1747505858572,4.04325953,2473.3,2472.9,0.55]
[1747505859079,4.04325953,2473.3,2473.0,0.55]
[1747505859271,4.04294841,2473.5,2473.0,5.05304064]
[1747505859471,9.88,2473.6,2473.3,0.55]
[1747505859671,13.22276291,2473.6,2473.2,0.55]
[1747505859898,4.04286032,2473.5,2473.2,0.55]
[1747505860407,4.04313143,2473.4,2473.1,0.55]
[1747505860606,4.04313143,2473.4,2473.2,0.38578725]
[1747505861511,0.778,2474.2,2473.2,0.38578725]
[1747505861709,4.04260899,2473.7,2473.3,0.55]
[1747505862423,9.152,2473.8,2473.3,0.55]
[1747505862626,9.144,2473.9,2473.4,4.59295268]
[1747505862783,4.04206126,2474.0,2473.6,0.55]
[1747505863119,0.778,2474.5,2473.9,0.55]
[1747505863421,13.18642249,2474.4,2473.7,0.55]
[1747505863624,9.145,2474.4,2473.7,0.55]
[1747505863811,4.04195182,2474.1,2473.7,0.55]
[1747505864190,13.1718006,2474.2,2473.7,1.49325197]
[1747505864393,4.04190347,2474.1,2473.7,1.49325197]
[1747505864589,4.04190347,2474.1,2473.9,0.55]
[1747505865424,8.7764,2474.9,2473.9,0.55]
[1747505865591,4.041497,2474.4,2473.9,4.59212449]
[1747505865792,4.04156161,2474.3,2473.9,5.49820561]
[1747505866324,9.107,2474.4,2473.9,1.45608112]
[1747505866629,4.04195045,2474.1,2474.0,0.93588011]
[1747505867629,4.04195045,2474.1,2474.0,0.55]
[1747505868431,4.04073056,2474.8,2474.1,0.55]
[1747505868725,4.04195547,2474.1,2473.7,0.55]
[1747505869024,4.04179564,2474.2,2473.7,4.59245007]
[1747505869225,4.04179564,2474.2,2473.7,6.50428934]
[1747505869538,4.04162332,2474.3,2473.7,6.50428934]
[1747505869539,4.04188642,2474.1,2473.7,6.50428934]
[1747505870038,4.04188642,2474.1,2473.9,0.55]
[1747505870549,4.04109637,2474.6,2473.9,0.55]
[1747505870705,9.035,2474.5,2473.7,0.55]
[1747505870906,4.04180339,2474.2,2473.7,0.55]
[1747505871087,9.033,2474.1,2473.9,0.55]
[1747505871527,9.033,2474.1,2473.8,0.55]
[1747505871840,9.033,2474.1,2473.8,4.59229581]
[1747505872011,9.033,2474.1,2473.8,0.55]
[1747505872215,7.5473315,2476.4,2474.0,0.55]
[1747505872216,4.04148388,2474.4,2474.0,0.55]
[1747505872530,4.04127127,2474.5,2474.0,4.59193991]
[1747505872697,4.04140196,2474.4,2474.0,4.59193991]
[1747505872902,13.05722116,2474.5,2474.0,0.55]
[1747505873115,0.7,2474.3,2474.0,0.55]
[1747505874236,4.7415741,2474.3,2474.0,0.55]
[1747505874442,0.7,2474.3,2473.8,0.55]
[1747505874649,4.74162944,2474.3,2473.8,5.75800348]
[1747505874816,0.7,2474.3,2474.2,4.59171045]
[1747505875152,4.0413777,2474.5,2474.0,4.59194254]
[1747505875667,13.02920577,2474.6,2474.3,0.55]
[1747505875845,4.04126418,2474.5,2474.3,0.55]
[1747505876018,4.04126418,2474.5,2474.2,0.55]
[1747505876444,4.04113309,2474.6,2474.2,4.59170551]
[1747505876753,8.7764,2474.9,2474.4,4.59134884]
[1747505876754,13.00368744,2474.9,2474.4,4.59134884]
[1747505877063,8.96,2475.2,2474.5,0.55]
[1747505877219,13.00020089,2475.2,2474.5,0.55]
[1747505877416,4.03989095,2475.4,2474.6,13.79502433]
[1747505877757,8.963,2475.3,2474.8,0.55]
[1747505877959,4.04031613,2475.1,2474.7,0.55]
[1747505878342,4.04008079,2475.2,2474.7,4.59081281]
[1747505878633,4.04015124,2475.2,2474.7,4.59077117]
[1747505878839,4.0402811,2475.1,2474.7,2.42614925]
[1747505879359,4.04032481,2475.1,2474.7,2.42614925]
[1747505880959,4.04097885,2474.7,2474.6,0.55]
[1747505881144,4.04105714,2474.6,2474.5,9.203]
[1747505881459,4.04131871,2474.5,2474.3,0.8203]
[1747505881752,4.04136669,2474.5,2474.3,0.55]
[1747505881952,12.96263888,2474.9,2474.3,0.55]
[1747505882139,12.96268113,2474.9,2474.3,0.55]
[1747505882345,4.04129779,2474.5,2474.2,0.55]
[1747505882534,8.922,2474.9,2474.2,0.55]
[1747505882729,4.04100215,2474.7,2474.2,5.16298344]
[1747505882956,0.30527551,2475.7,2474.4,0.55]
[1747505883159,4.04027677,2475.1,2474.6,4.59098497]
[1747505883337,4.04027677,2475.1,2474.8,0.55]
[1747505883540,4.04015408,2475.2,2474.8,0.55]
[1747505883737,4.04029837,2475.1,2474.8,0.55]
[1747505884063,4.03959214,2475.5,2475.1,0.55]
[1747505884273,8.897,2475.5,2475.1,0.55]
[1747505884564,8.897,2475.5,2474.9,0.55]
[1747505884565,4.04007083,2475.3,2474.9,0.55]
[1747505884764,4.0400817,2475.2,2474.9,0.55]
[1747505884925,8.0,2475.8,2474.9,0.55]
[1747505885125,4.03942478,2475.6,2475.1,4.59016096]
[1747505885327,8.9,2475.6,2475.1,0.55]
[1747505885570,4.03982093,2475.4,2475.1,0.55]
[1747505885943,1.0,2476.1,2475.3,0.55]
[1747505886143,4.03956033,2475.6,2475.3,10.80254707]
[1747505886332,4.03934484,2475.7,2475.3,1.88954707]
[1747505887148,4.03919932,2475.8,2475.3,1.88954707]
[1747505887349,4.03927598,2475.7,2475.3,1.88954707]
[1747505887573,5.03873971,2476.1,2475.7,0.55]
[1747505887772,5.03865651,2476.1,2475.7,0.55]
[1747505888086,9.888,2476.1,2475.4,0.55]
[1747505888285,1.0,2476.1,2475.8,0.55]
[1747505888448,5.03863913,2476.1,2475.8,9.463]
[1747505888780,1.0,2476.1,2476.0,5.39427221]
[1747505889284,1.0,2476.1,2476.0,1.3555]
[1747505889471,1.0,2476.1,2476.0,5.39427221]
[1747505889661,1.0,2476.1,2476.0,3.19011799]
[1747505889861,1.0,2476.1,2476.0,1.3555]
[1747505890050,5.0386091,2476.1,2476.0,0.55]
[1747505890761,4.03926162,2475.7,2475.4,9.3911595]
[1747505891092,4.03958796,2475.5,2475.4,0.4791595]
[1747505891388,4.86998796,2475.5,2475.4,0.4791595]
[1747505891745,21.74298796,2475.5,2475.4,0.4791595]
[1747505892159,4.86998796,2475.5,2475.4,0.4791595]
[1747505892376,0.8304,2475.9,2475.4,0.4791595]
[1747505892576,21.74737301,2475.9,2475.5,0.55]
[1747505892746,4.03942478,2475.6,2475.5,0.55]
[1747505893181,8.876,2475.8,2475.5,0.55]
[1747505893589,4.03937082,2475.7,2475.3,0.55]
[1747505893814,12.91525031,2475.8,2475.3,0.55]
[1747505893815,8.876,2475.8,2475.3,0.55]
[1747505893951,12.91512913,2475.8,2475.3,0.55]
[1747505894152,4.03967889,2475.5,2475.3,0.55]
[1747505894405,4.03975115,2475.4,2475.3,0.55]
[1747505894688,12.91513216,2475.8,2474.9,9.461]
[1747505894892,4.03943979,2475.6,2474.9,9.461]
[1747505895109,4.03968233,2475.5,2474.9,9.98556595]
[1747505895397,4.03968233,2475.5,2475.1,0.55]
[1747505895557,4.03903306,2475.9,2475.0,4.04031023]
[1747505895558,8.856,2475.9,2475.3,0.55]
[1747505895757,4.03921552,2475.8,2475.2,4.58996298]
[1747505895961,8.855,2476.0,2475.6,0.55]
[1747505896593,4.03835379,2476.3,2475.6,0.55]
[1747505896911,4.03851662,2476.2,2475.8,0.55]
[1747505897074,4.03863707,2476.1,2475.6,4.5893523]
[1747505897596,4.03852049,2476.2,2475.8,0.55]
[1747505897796,4.03853314,2476.2,2475.8,0.55]
[1747505898123,4.03865554,2476.1,2475.7,0.55]
[1747505898624,4.03815404,2476.4,2475.9,4.58881867]
[1747505898782,4.03837869,2476.3,2476.1,0.55]
[1747505898981,0.8304,2476.8,2476.3,0.55]
[1747505899198,8.833,2476.7,2476.3,0.55]
[1747505899411,4.03802978,2476.5,2476.3,0.55]
[1747505899613,19.871,2478.6,2476.5,0.55]
[1747505899829,0.30369915,2479.9,2476.7,0.55]
[1747505900034,1.2805412,2479.0,2476.7,0.55]
[1747505900331,1.2805412,2479.0,2476.6,28.99676118]
[1747505900332,2.0156632,2482.8,2480.7,4.03112024]
[1747505900499,5.13909327,2481.3,2480.9,4.58079527]
[1747505900686,5.13909327,2481.3,2481.2,4.03030791]
[1747505900888,8.27538271,2482.5,2481.4,5.61202756]
[1747505901198,5.65967044,2481.5,2481.4,27.30707549]
[1747505901548,6.86116957,2482.0,2481.9,4.02917119]
[1747505901687,6.86116957,2482.0,2481.5,0.55]
[1747505901887,6.86116957,2482.0,2481.9,4.57917119]
[1747505902638,7.50797073,2482.4,2482.2,4.57868423]
[1747505902837,7.50797073,2482.4,2482.2,4.95770947]
[1747505903007,8.24369669,2482.9,2482.8,4.02771064]
[1747505903211,8.24369669,2482.9,2482.7,19.846]
[1747505903407,8.24369669,2482.9,2482.5,0.17383475]
[1747505903600,0.12697158,2482.9,2482.5,0.17383475]
[1747505903941,0.12697158,2482.9,2482.8,0.55]
[1747505904931,0.12697158,2482.9,2482.6,0.71874613]
[1747505905134,3.18738141,2483.6,2482.8,0.37902524]
[1747505905337,4.02658072,2483.5,2482.9,0.37902524]
[1747505905493,4.02681609,2483.4,2482.9,0.37902524]
[1747505905697,4.0269005,2483.3,2482.9,0.37902524]
[1747505905999,4.02644213,2483.6,2483.0,0.30571214]
[1747505906205,0.005,2483.7,2483.0,0.30571214]
[1747505906206,0.005,2483.7,2483.1,0.04027328]
[1747505906448,0.005,2483.7,2483.6,0.21018973]
[1747505907039,0.005,2483.7,2483.6,4.236603]
[1747505907249,0.005,2483.7,2483.6,6.59960666]
[1747505907404,0.005,2483.7,2483.6,6.63986506]
[1747505907599,4.42302655,2486.2,2483.6,3.41868768]
[1747505907839,4.0225928,2486.0,2484.7,4.02462386]
[1747505908135,4.02376596,2485.3,2484.8,1.76991893]
[1747505908335,9.846,2485.7,2485.2,0.45735056]
[1747505908535,4.02291253,2485.8,2485.2,0.45735056]
[1747505908736,4.02365911,2485.3,2485.2,0.45735056]
[1747505908939,4.02382277,2485.2,2485.0,0.60980074]
[1747505909139,4.02367177,2485.3,2485.1,0.37902524]
[1747505909439,4.02365911,2485.3,2485.2,0.55]
[1747505909642,4.02334258,2485.5,2485.2,0.55]
[1747505909841,10.4897,2485.9,2485.2,0.55]
[1747505910041,0.6667,2485.9,2485.2,0.55]
[1747505910207,4.02317347,2485.6,2485.5,0.0452044]
[1747505910840,1.01030486,2488.9,2485.6,0.55]
[1747505911045,2.03023573,2487.6,2486.0,0.55]
[1747505911254,3.97571658,2487.6,2485.7,1.12142774]
[1747505911541,4.01982574,2487.7,2486.7,4.02123617]
[1747505911739,0.7944,2487.8,2486.3,11.005]
[1747505911949,0.7944,2487.8,2486.3,8.55]
[1747505912132,4.0197773,2487.7,2486.5,0.55]
[1747505912437,26.77124847,2488.3,2486.9,0.55]
[1747505912639,4.019918,2487.7,2486.9,0.55]
[1747505912846,4.02005833,2487.6,2486.7,0.55]
[1747505913051,3.96803766,2487.7,2486.7,0.55]
[1747505913205,22.015,2487.7,2486.6,0.37902524]
[1747505913549,15.16696953,2488.2,2486.6,0.37902524]
[1747505913762,4.02139381,2486.7,2486.6,0.37902524]
[1747505914116,0.7912,2488.8,2486.8,4.0211768]
[1747505914344,4.02003026,2487.6,2486.3,0.60980074]
[1747505914545,5.57145686,2487.5,2486.3,0.60980074]
[1747505914731,4.02184239,2486.5,2486.3,0.60980074]
[1747505914931,4.02042375,2487.3,2485.5,8.0452044]
[1747505914932,4.02169194,2486.6,2485.7,8.0]
[1747505915134,28.7,2488.0,2485.8,4.06299881]
[1747505915313,4.02018262,2487.5,2486.0,4.02240338]
[1747505915549,4.02021094,2487.5,2486.6,8.55]
[1747505915729,4.0200717,2487.6,2486.6,4.5715145]
[1747505915948,28.7,2488.0,2486.8,0.55]
[1747505916418,4.01960963,2487.9,2486.8,4.57120384]
[1747505916622,28.7,2488.0,2486.8,4.57120384]
[1747505916623,32.71937433,2488.0,2486.8,0.55]
[1747505916861,4.01961572,2487.8,2486.4,0.55]